[Event "Late-Titled-Tuesday-Blitz-August-29-2023"]
[Site "Chess.com"]
[Date "2023.08.29"]
[Round "3"]
[White "Druid24"]
[Black "SergioMoralesG"]
[Result "1-0"]
[WhiteElo "2656"]
[BlackElo "2450"]
[TimeControl "180+1"]
[EndTime "14:27:52 PDT"]
[Termination "Druid24 won by resignation"]

1. d4 {[%clk 0:02:59.7]} 1... d5 {[%clk 0:02:10.2]} 2. Nf3 {[%clk 0:02:58.9]}
2... Nf6 {[%clk 0:02:09.8]} 3. Bf4 {[%clk 0:02:58.8]} 3... e6 {[%clk 0:02:09]}
4. Nbd2 {[%clk 0:02:58.3]} 4... c5 {[%clk 0:02:09.3]} 5. e3 {[%clk 0:02:58.4]}
5... Bd6 {[%clk 0:02:09.8]} 6. Bg5 {[%clk 0:02:54.7]} 6... Nbd7 {[%clk
0:02:07.6]} 7. c3 {[%clk 0:02:54.5]} 7... h6 {[%clk 0:02:03.1]} 8. Bh4 {[%clk
0:02:53.9]} 8... b6 {[%clk 0:01:58.3]} 9. Bb5 {[%clk 0:02:51.3]} 9... Bb7 {[%clk
0:01:46.5]} 10. Ne5 {[%clk 0:02:49.4]} 10... g5 {[%clk 0:01:30.3]} 11. Bg3
{[%clk 0:02:47.2]} 11... Qc7 {[%clk 0:01:23.8]} 12. Nxd7 {[%clk 0:02:43.3]}
12... Nxd7 {[%clk 0:01:23.7]} 13. Nf3 {[%clk 0:02:44]} 13... O-O-O {[%clk
0:01:11.5]} 14. Qa4 {[%clk 0:02:32.9]} 14... Kb8 {[%clk 0:01:03.3]} 15. Bxd6
{[%clk 0:02:22.8]} 15... Qxd6 {[%clk 0:01:01.5]} 16. Bxd7 {[%clk 0:02:22.6]}
16... Qxd7 {[%clk 0:00:57.1]} 17. Qxd7 {[%clk 0:02:21]} 17... Rxd7 {[%clk
0:00:58]} 18. h4 {[%clk 0:02:20.6]} 18... g4 {[%clk 0:00:29.6]} 19. Ne5 {[%clk
0:02:19.9]} 19... Rc7 {[%clk 0:00:25.9]} 20. h5 {[%clk 0:02:19.6]} 20... f6
{[%clk 0:00:12.6]} 21. Nxg4 {[%clk 0:02:18.8]} 21... Rg7 {[%clk 0:00:13.1]} 22.
Rh4 {[%clk 0:02:05.3]} 22... f5 {[%clk 0:00:12.7]} 23. Ne5 {[%clk 0:02:05.3]}
23... Rxg2 {[%clk 0:00:12.2]} 24. Kf1 {[%clk 0:02:05.6]} 24... Rg7 {[%clk
0:00:08.5]} 25. f3 {[%clk 0:02:04.6]} 25... Kc7 {[%clk 0:00:07.6]} 26. Kf2
{[%clk 0:02:04.3]} 26... Rhg8 {[%clk 0:00:07.2]} 27. Ng6 {[%clk 0:02:03.9]}
27... Bc6 {[%clk 0:00:06.3]} 28. Rg1 {[%clk 0:02:01.5]} 28... Be8 {[%clk
0:00:06.6]} 29. Rh2 {[%clk 0:02:01.9]} 29... Bxg6 {[%clk 0:00:06.3]} 30. Rhg2
{[%clk 0:02:02.2]} 30... Kd7 {[%clk 0:00:06.1]} 31. hxg6 {[%clk 0:01:58.9]}
31... Ke7 {[%clk 0:00:05.9]} 32. b4 {[%clk 0:01:57.1]} 32... c4 {[%clk
0:00:05.7]} 33. e4 {[%clk 0:01:55.7]} 33... dxe4 {[%clk 0:00:04.1]} 34. fxe4
{[%clk 0:01:56.4]} 34... fxe4 {[%clk 0:00:04.4]} 35. Ke3 {[%clk 0:01:56.5]}
35... Kf6 {[%clk 0:00:04.7]} 36. Rf2+ {[%clk 0:01:54.6]} 36... Ke7 {[%clk
0:00:04.9]} 37. Rfg2 {[%clk 0:01:54.9]} 37... Kf6 {[%clk 0:00:04.7]} 38. Rf1+
{[%clk 0:01:04.8]} 38... Ke7 {[%clk 0:00:04.7]} 39. Rgf2 {[%clk 0:01:05.5]}
39... Rxg6 {[%clk 0:00:04.7]} 40. Rf7+ {[%clk 0:01:05.2]} 40... Kd6 {[%clk
0:00:05]} 41. Rxa7 {[%clk 0:01:04.8]} 41... Rg3+ {[%clk 0:00:05.3]} 42. Kxe4
{[%clk 0:01:04]} 42... R8g4+ {[%clk 0:00:04.6]} 43. Rf4 {[%clk 0:01:04]} 43...
Rxf4+ {[%clk 0:00:05.1]} 44. Kxf4 {[%clk 0:01:03.9]} 44... Rxc3 {[%clk 0:00:06]}
45. Rb7 {[%clk 0:01:03.1]} 45... Kd5 {[%clk 0:00:06.2]} 46. Rxb6 {[%clk
0:01:02.5]} 46... Rd3 {[%clk 0:00:06.3]} 47. a4 {[%clk 0:00:59.9]} 47... Rxd4+
{[%clk 0:00:06.5]} 48. Ke3 {[%clk 0:00:59.9]} 48... c3 {[%clk 0:00:07.4]} 49.
Rb5+ {[%clk 0:00:57.9]} 49... Kc4 {[%clk 0:00:06.2]} 50. Rc5+ {[%clk 0:00:56.8]}
50... Kxb4 {[%clk 0:00:04]} 51. Kxd4 {[%clk 0:00:57.4]} 51... Kxa4 {[%clk
0:00:03.6]} 52. Rxc3 {[%clk 0:00:57.1]} 52... Kb4 {[%clk 0:00:02.9]} 53. Re3
{[%clk 0:00:56.7]} 53... Kb5 {[%clk 0:00:03.3]} 54. Ke5 {[%clk 0:00:57.4]} 54...
h5 {[%clk 0:00:03.6]} 55. Kxe6 {[%clk 0:00:57.2]} 55... Kc4 {[%clk 0:00:04.5]}
56. Rh3 {[%clk 0:00:57.8]} 56... Kd4 {[%clk 0:00:05.4]} 57. Rxh5 {[%clk
0:00:57.9]} 57... Ke4 {[%clk 0:00:06.3]} 58. Rh4+ {[%clk 0:00:58.1]} 58... Kf3
{[%clk 0:00:06.3]} 59. Ke5 {[%clk 0:00:58.8]} 1-0

[Event "Late-Titled-Tuesday-Blitz-August-29-2023"]
[Site "Chess.com"]
[Date "2023.08.29"]
[Round "3"]
[White "andriipalchuk"]
[Black "cthulhuuu"]
[Result "1-0"]
[WhiteElo "2695"]
[BlackElo "2477"]
[TimeControl "180+1"]
[EndTime "14:27:56 PDT"]
[Termination "andriipalchuk won on time"]

1. e4 {[%clk 0:03:00.9]} 1... d6 {[%clk 0:03:00.6]} 2. d4 {[%clk 0:03:00.9]}
2... Nf6 {[%clk 0:03:01.2]} 3. Nc3 {[%clk 0:03:01.2]} 3... c6 {[%clk 0:03:02.1]}
4. Be2 {[%clk 0:03:00.8]} 4... e5 {[%clk 0:03:01.8]} 5. Nf3 {[%clk 0:03:00.3]}
5... Qc7 {[%clk 0:03:01.3]} 6. h3 {[%clk 0:02:58.7]} 6... b5 {[%clk 0:03:01.1]}
7. a3 {[%clk 0:02:58.4]} 7... Be7 {[%clk 0:03:00.9]} 8. O-O {[%clk 0:02:58.2]}
8... O-O {[%clk 0:03:01.3]} 9. Bg5 {[%clk 0:02:58.1]} 9... Nbd7 {[%clk
0:03:01.1]} 10. dxe5 {[%clk 0:02:56.1]} 10... dxe5 {[%clk 0:03:00.8]} 11. Qc1
{[%clk 0:02:56.7]} 11... Nc5 {[%clk 0:02:52.9]} 12. Re1 {[%clk 0:02:54.2]} 12...
Ne6 {[%clk 0:02:52.9]} 13. Be3 {[%clk 0:02:51.8]} 13... a5 {[%clk 0:02:49.7]}
14. Nh2 {[%clk 0:02:50.8]} 14... Bb7 {[%clk 0:02:49.1]} 15. Ng4 {[%clk
0:02:50.5]} 15... b4 {[%clk 0:02:44.5]} 16. Nxf6+ {[%clk 0:02:50.5]} 16... Bxf6
{[%clk 0:02:44.6]} 17. Nb1 {[%clk 0:02:48.7]} 17... Nd4 {[%clk 0:02:39.3]} 18.
Bf1 {[%clk 0:02:44.4]} 18... c5 {[%clk 0:02:37.5]} 19. Nd2 {[%clk 0:02:44.1]}
19... g6 {[%clk 0:02:23.6]} 20. Nc4 {[%clk 0:02:41.2]} 20... Bg7 {[%clk
0:02:20.7]} 21. b3 {[%clk 0:02:20.4]} 21... f5 {[%clk 0:02:14.1]} 22. exf5
{[%clk 0:02:19.3]} 22... gxf5 {[%clk 0:02:14.5]} 23. axb4 {[%clk 0:02:19.1]}
23... axb4 {[%clk 0:02:13.2]} 24. Rxa8 {[%clk 0:02:18.7]} 24... Bxa8 {[%clk
0:02:13.6]} 25. Bxd4 {[%clk 0:02:16.6]} 25... cxd4 {[%clk 0:02:07.3]} 26. Qd2
{[%clk 0:02:17.1]} 26... Qc5 {[%clk 0:01:53.2]} 27. Ra1 {[%clk 0:01:45.1]} 27...
e4 {[%clk 0:01:44.8]} 28. Qg5 {[%clk 0:01:39.8]} 28... d3 {[%clk 0:00:40]} 29.
Ra5 {[%clk 0:01:39.1]} 29... Qd4 {[%clk 0:00:40.9]} 30. cxd3 {[%clk 0:01:34.5]}
30... exd3 {[%clk 0:00:40.4]} 31. Rxf5 {[%clk 0:01:24]} 31... Be4 {[%clk
0:00:30.9]} 32. Rxf8+ {[%clk 0:01:20.5]} 32... Kxf8 {[%clk 0:00:31.3]} 33. Qf4+
{[%clk 0:01:01]} 33... Ke7 {[%clk 0:00:25.5]} 34. Qc7+ {[%clk 0:00:52.9]} 34...
Kf8 {[%clk 0:00:23.9]} 35. Qb8+ {[%clk 0:00:52.8]} 35... Kf7 {[%clk 0:00:15.2]}
36. Qxb4 {[%clk 0:00:52.8]} 36... Kg6 {[%clk 0:00:08.6]} 37. Qb8 {[%clk
0:00:37.3]} 37... Bf6 {[%clk 0:00:08]} 38. Qf4 {[%clk 0:00:30.3]} 38... Bg5
{[%clk 0:00:06.3]} 39. Ne5+ {[%clk 0:00:30.5]} 1-0

[Event "Late-Titled-Tuesday-Blitz-August-29-2023"]
[Site "Chess.com"]
[Date "2023.08.29"]
[Round "3"]
[White "chessS1r"]
[Black "Ducke13"]
[Result "1-0"]
[WhiteElo "2594"]
[BlackElo "2421"]
[TimeControl "180+1"]
[EndTime "14:27:58 PDT"]
[Termination "chessS1r won on time"]

1. d4 {[%clk 0:02:56.2]} 1... Nf6 {[%clk 0:02:59.7]} 2. Nf3 {[%clk 0:02:55.1]}
2... g6 {[%clk 0:03:00]} 3. Bg5 {[%clk 0:02:55.5]} 3... Bg7 {[%clk 0:02:59.4]}
4. Nbd2 {[%clk 0:02:56.2]} 4... c5 {[%clk 0:02:58.9]} 5. Bxf6 {[%clk 0:02:55.7]}
5... Bxf6 {[%clk 0:02:56.2]} 6. Ne4 {[%clk 0:02:56.2]} 6... Bxd4 {[%clk
0:02:50.9]} 7. Nxd4 {[%clk 0:02:56.4]} 7... cxd4 {[%clk 0:02:51.5]} 8. Qxd4
{[%clk 0:02:57.1]} 8... O-O {[%clk 0:02:49.2]} 9. c4 {[%clk 0:02:57.4]} 9... d6
{[%clk 0:02:41.4]} 10. Nc3 {[%clk 0:02:53.5]} 10... Qa5 {[%clk 0:02:37.4]} 11.
e4 {[%clk 0:02:52.3]} 11... Be6 {[%clk 0:02:32.5]} 12. Be2 {[%clk 0:02:46.9]}
12... Rc8 {[%clk 0:02:30.2]} 13. b3 {[%clk 0:02:38.8]} 13... b5 {[%clk
0:02:12.2]} 14. O-O {[%clk 0:02:25.5]} 14... bxc4 {[%clk 0:02:06.6]} 15. bxc4
{[%clk 0:02:20.5]} 15... Nc6 {[%clk 0:01:59.1]} 16. Qe3 {[%clk 0:02:20.5]} 16...
Ne5 {[%clk 0:01:33.4]} 17. Nd5 {[%clk 0:02:19.5]} 17... Qd8 {[%clk 0:01:26.5]}
18. Rac1 {[%clk 0:02:07.9]} 18... Rc5 {[%clk 0:01:12.7]} 19. f4 {[%clk
0:02:05.4]} 19... Nd7 {[%clk 0:01:03.7]} 20. h4 {[%clk 0:01:14]} 20... Rac8
{[%clk 0:00:55.2]} 21. h5 {[%clk 0:01:13.6]} 21... Nb6 {[%clk 0:00:25.4]} 22. f5
{[%clk 0:00:57.7]} 22... Bxd5 {[%clk 0:00:23.4]} 23. exd5 {[%clk 0:00:56.3]}
23... Nxc4 {[%clk 0:00:18.9]} 24. Bxc4 {[%clk 0:00:52.2]} 24... Rxc4 {[%clk
0:00:19]} 25. Rxc4 {[%clk 0:00:53.1]} 25... Rxc4 {[%clk 0:00:18.9]} 26. fxg6
{[%clk 0:00:46.9]} 26... hxg6 {[%clk 0:00:15.7]} 27. hxg6 {[%clk 0:00:47.1]}
27... Qb6 {[%clk 0:00:08]} 28. Qxb6 {[%clk 0:00:40.7]} 28... axb6 {[%clk
0:00:08.9]} 29. Rxf7 {[%clk 0:00:41.1]} 29... Rc1+ {[%clk 0:00:05.6]} 30. Kh2
{[%clk 0:00:41.2]} 30... Rd1 {[%clk 0:00:05.4]} 31. Rxe7 {[%clk 0:00:37.6]}
31... Rxd5 {[%clk 0:00:06]} 32. Kh3 {[%clk 0:00:28.6]} 32... Rd2 {[%clk
0:00:05.6]} 33. g4 {[%clk 0:00:24.5]} 33... Rxa2 {[%clk 0:00:05.4]} 34. Kh4
{[%clk 0:00:25]} 34... b5 {[%clk 0:00:03.1]} 35. Rb7 {[%clk 0:00:18.5]} 35...
Rb2 {[%clk 0:00:02]} 36. Kg5 {[%clk 0:00:18.8]} 36... d5 {[%clk 0:00:02.1]} 37.
g7 {[%clk 0:00:12]} 1-0

[Event "Late-Titled-Tuesday-Blitz-August-29-2023"]
[Site "Chess.com"]
[Date "2023.08.29"]
[Round "3"]
[White "szachmistrz2500"]
[Black "imdarealist"]
[Result "1/2-1/2"]
[WhiteElo "2487"]
[BlackElo "2330"]
[TimeControl "180+1"]
[EndTime "14:27:59 PDT"]
[Termination "Game drawn by repetition"]

1. Nf3 {[%clk 0:02:57.1]} 1... d5 {[%clk 0:02:58.3]} 2. g3 {[%clk 0:02:57.1]}
2... Bf5 {[%clk 0:02:54.7]} 3. Bg2 {[%clk 0:02:57.7]} 3... e6 {[%clk 0:02:54.9]}
4. O-O {[%clk 0:02:58.1]} 4... Nf6 {[%clk 0:02:55.2]} 5. d3 {[%clk 0:02:58.7]}
5... Be7 {[%clk 0:02:53.5]} 6. Nbd2 {[%clk 0:02:58.9]} 6... h6 {[%clk
0:02:53.1]} 7. Qe1 {[%clk 0:02:59.3]} 7... Bh7 {[%clk 0:02:51.3]} 8. e4 {[%clk
0:02:59.4]} 8... O-O {[%clk 0:02:50.8]} 9. Qe2 {[%clk 0:02:59.4]} 9... c5 {[%clk
0:02:50.3]} 10. Re1 {[%clk 0:02:59.4]} 10... Nc6 {[%clk 0:02:50.7]} 11. e5
{[%clk 0:02:57.9]} 11... Nd7 {[%clk 0:02:50.4]} 12. Nf1 {[%clk 0:02:58.1]} 12...
Qc7 {[%clk 0:02:49.2]} 13. h4 {[%clk 0:02:55.2]} 13... Nd4 {[%clk 0:02:37.9]}
14. Nxd4 {[%clk 0:02:49]} 14... cxd4 {[%clk 0:02:38.8]} 15. Bf4 {[%clk
0:02:48.5]} 15... Rac8 {[%clk 0:02:37.9]} 16. Rac1 {[%clk 0:02:47.8]} 16... Qa5
{[%clk 0:02:32.2]} 17. Qg4 {[%clk 0:02:45.2]} 17... Bf5 {[%clk 0:02:27.1]} 18.
Qh5 {[%clk 0:02:42.4]} 18... Bg6 {[%clk 0:02:25.8]} 19. Qg4 {[%clk 0:02:40.2]}
19... Bf5 {[%clk 0:02:12.6]} 20. Qh5 {[%clk 0:02:39.4]} 20... Qxa2 {[%clk
0:02:00.9]} 21. Ra1 {[%clk 0:02:28.6]} 21... Qxb2 {[%clk 0:02:00.9]} 22. Rxa7
{[%clk 0:02:28.7]} 22... Qxc2 {[%clk 0:01:59.2]} 23. Rxb7 {[%clk 0:02:28.4]}
23... Qc6 {[%clk 0:01:56.5]} 24. Rb3 {[%clk 0:02:21.6]} 24... Rb8 {[%clk
0:01:52.4]} 25. Reb1 {[%clk 0:02:21.2]} 25... Rxb3 {[%clk 0:01:50.6]} 26. Rxb3
{[%clk 0:02:22.1]} 26... Qc2 {[%clk 0:01:40.6]} 27. Rb7 {[%clk 0:02:19]} 27...
Qc6 {[%clk 0:01:40.3]} 28. Rb3 {[%clk 0:02:16]} 28... Nc5 {[%clk 0:01:39.7]} 29.
Rb4 {[%clk 0:01:57.4]} 29... Nxd3 {[%clk 0:01:38.4]} 30. Rxd4 {[%clk 0:01:57.6]}
30... Bc5 {[%clk 0:01:33.3]} 31. Rxd3 {[%clk 0:01:51.6]} 31... Bxd3 {[%clk
0:01:32.7]} 32. Bxh6 {[%clk 0:01:44.8]} 32... gxh6 {[%clk 0:01:23.6]} 33. Qxh6
{[%clk 0:01:44.6]} 33... Be7 {[%clk 0:01:08.7]} 34. Ne3 {[%clk 0:01:39.8]} 34...
Qc1+ {[%clk 0:01:01.2]} 35. Kh2 {[%clk 0:01:39.6]} 35... Rb8 {[%clk 0:00:51.5]}
36. Qh5 {[%clk 0:01:16.3]} 36... Rb1 {[%clk 0:00:49.2]} 37. Ng4 {[%clk 0:01:16]}
37... Qg1+ {[%clk 0:00:44.2]} 38. Kh3 {[%clk 0:01:16.2]} 38... Bf5 {[%clk
0:00:43.8]} 39. Bf3 {[%clk 0:01:01.9]} 39... Qf1+ {[%clk 0:00:34.4]} 40. Kh2
{[%clk 0:00:59.4]} 40... Bxg4 {[%clk 0:00:31.4]} 41. Qxg4+ {[%clk 0:00:58.8]}
41... Kf8 {[%clk 0:00:30.5]} 42. h5 {[%clk 0:00:56.8]} 42... Qxf2+ {[%clk
0:00:29.7]} 43. Kh3 {[%clk 0:00:56.7]} 43... Qe3 {[%clk 0:00:27]} 44. Bg2 {[%clk
0:00:47.2]} 44... Qg5 {[%clk 0:00:27.3]} 45. Qe2 {[%clk 0:00:44.9]} 45... Rc1
{[%clk 0:00:24.9]} 46. Qb2 {[%clk 0:00:42.4]} 46... Kg7 {[%clk 0:00:23]} 47. Qe2
{[%clk 0:00:38.5]} 47... Rc4 {[%clk 0:00:23]} 48. Bf3 {[%clk 0:00:37.7]} 48...
Qf5+ {[%clk 0:00:21.9]} 49. g4 {[%clk 0:00:33.6]} 49... Qg5 {[%clk 0:00:21.5]}
50. Qd3 {[%clk 0:00:32]} 50... Rf4 {[%clk 0:00:20.3]} 51. Kg3 {[%clk 0:00:30.9]}
51... Rc4 {[%clk 0:00:19.5]} 52. Qe2 {[%clk 0:00:30.2]} 52... Qh4+ {[%clk
0:00:19.3]} 53. Kg2 {[%clk 0:00:30.5]} 53... Qg5 {[%clk 0:00:20.2]} 54. Kg3
{[%clk 0:00:30.2]} 54... Qf4+ {[%clk 0:00:20]} 55. Kg2 {[%clk 0:00:30.4]} 55...
Qg5 {[%clk 0:00:19.2]} 56. Kg3 {[%clk 0:00:30.5]} 1/2-1/2

[Event "Late-Titled-Tuesday-Blitz-August-29-2023"]
[Site "Chess.com"]
[Date "2023.08.29"]
[Round "3"]
[White "Witik"]
[Black "FairChess_on_YouTube"]
[Result "0-1"]
[WhiteElo "2788"]
[BlackElo "3060"]
[TimeControl "180+1"]
[EndTime "14:28:04 PDT"]
[Termination "FairChess_on_YouTube won on time"]

1. e4 {[%clk 0:02:59.4]} 1... c5 {[%clk 0:02:59.5]} 2. Nf3 {[%clk 0:02:59.5]}
2... Nc6 {[%clk 0:02:59.1]} 3. d4 {[%clk 0:02:59.1]} 3... cxd4 {[%clk
0:02:58.8]} 4. Nxd4 {[%clk 0:03:00]} 4... Nf6 {[%clk 0:02:58.9]} 5. Nc3 {[%clk
0:02:59.8]} 5... e6 {[%clk 0:02:59.5]} 6. Ndb5 {[%clk 0:02:59.2]} 6... Bb4
{[%clk 0:02:56.9]} 7. a3 {[%clk 0:02:59.2]} 7... Bxc3+ {[%clk 0:02:57.2]} 8.
Nxc3 {[%clk 0:03:00.1]} 8... d5 {[%clk 0:02:57.8]} 9. exd5 {[%clk 0:03:00.6]}
9... exd5 {[%clk 0:02:58.5]} 10. Bd3 {[%clk 0:03:01.1]} 10... d4 {[%clk
0:02:57.3]} 11. Ne2 {[%clk 0:02:56.7]} 11... O-O {[%clk 0:02:55.8]} 12. O-O
{[%clk 0:02:51.8]} 12... Bg4 {[%clk 0:02:55.7]} 13. Bg5 {[%clk 0:02:30]} 13...
Re8 {[%clk 0:02:54.7]} 14. f3 {[%clk 0:02:25.4]} 14... Bh5 {[%clk 0:02:54.5]}
15. Nf4 {[%clk 0:02:24.2]} 15... Bg6 {[%clk 0:02:54.6]} 16. Nxg6 {[%clk
0:02:21.2]} 16... hxg6 {[%clk 0:02:54.5]} 17. Qd2 {[%clk 0:02:17.2]} 17... Qb6
{[%clk 0:02:53.2]} 18. b3 {[%clk 0:02:00.3]} 18... Nd5 {[%clk 0:02:50.6]} 19.
Rfe1 {[%clk 0:01:53.1]} 19... Ne5 {[%clk 0:02:43.8]} 20. h4 {[%clk 0:01:36.7]}
20... Rac8 {[%clk 0:02:42.5]} 21. Kh1 {[%clk 0:01:25.9]} 21... f6 {[%clk
0:02:30.1]} 22. Be4 {[%clk 0:01:18.4]} 22... Qc5 {[%clk 0:02:09.9]} 23. Bf4
{[%clk 0:01:10]} 23... Rcd8 {[%clk 0:01:42.6]} 24. Bg3 {[%clk 0:01:05]} 24...
Ne3 {[%clk 0:01:37.9]} 25. c3 {[%clk 0:00:53.6]} 25... Nf5 {[%clk 0:01:32.9]}
26. Bxf5 {[%clk 0:00:48.2]} 26... gxf5 {[%clk 0:01:32.8]} 27. cxd4 {[%clk
0:00:48.5]} 27... Rxd4 {[%clk 0:01:30.8]} 28. Qe3 {[%clk 0:00:38]} 28... Red8
{[%clk 0:01:28.5]} 29. Bxe5 {[%clk 0:00:37.2]} 29... fxe5 {[%clk 0:01:10.4]} 30.
Qg5 {[%clk 0:00:35.3]} 30... Qd6 {[%clk 0:00:57.6]} 31. Rac1 {[%clk 0:00:22]}
31... Qf6 {[%clk 0:00:57.6]} 32. Qxf6 {[%clk 0:00:10.3]} 32... gxf6 {[%clk
0:00:58.5]} 33. Rc7 {[%clk 0:00:10.6]} 33... Rxh4+ {[%clk 0:00:58.4]} 34. Kg1
{[%clk 0:00:10.9]} 34... Rh7 {[%clk 0:00:59.3]} 35. Rec1 {[%clk 0:00:10.6]}
35... Rdd7 {[%clk 0:00:52.3]} 36. Rc8+ {[%clk 0:00:08.8]} 36... Kf7 {[%clk
0:00:52.8]} 37. R1c2 {[%clk 0:00:09]} 37... f4 {[%clk 0:00:52.1]} 38. Kf2 {[%clk
0:00:09.3]} 38... Ke6 {[%clk 0:00:51]} 39. Re8+ {[%clk 0:00:09.1]} 39... Kf5
{[%clk 0:00:50.9]} 40. Rec8 {[%clk 0:00:07.7]} 40... Rd3 {[%clk 0:00:44.1]} 41.
R8c3 {[%clk 0:00:06.7]} 41... Rd1 {[%clk 0:00:43.1]} 42. Ke2 {[%clk 0:00:02.4]}
42... Rhh1 {[%clk 0:00:37.7]} 43. Rc8 {[%clk 0:00:01.2]} 43... Rb1 {[%clk
0:00:28.1]} 0-1

[Event "Late-Titled-Tuesday-Blitz-August-29-2023"]
[Site "Chess.com"]
[Date "2023.08.29"]
[Round "3"]
[White "Fandorine"]
[Black "rdarruda"]
[Result "0-1"]
[WhiteElo "2914"]
[BlackElo "2572"]
[TimeControl "180+1"]
[EndTime "14:28:04 PDT"]
[Termination "rdarruda won by resignation"]

1. Nf3 {[%clk 0:03:00.9]} 1... d5 {[%clk 0:02:59.1]} 2. c4 {[%clk 0:02:59.1]}
2... Nf6 {[%clk 0:02:58.5]} 3. cxd5 {[%clk 0:02:59.1]} 3... Nxd5 {[%clk
0:02:58.1]} 4. e4 {[%clk 0:02:59.1]} 4... Nb6 {[%clk 0:02:58.3]} 5. d4 {[%clk
0:02:59.2]} 5... g6 {[%clk 0:02:57.7]} 6. Nc3 {[%clk 0:02:58.8]} 6... Bg7 {[%clk
0:02:57.8]} 7. Be3 {[%clk 0:02:54.5]} 7... O-O {[%clk 0:02:57.6]} 8. Qd2 {[%clk
0:02:52.5]} 8... Bg4 {[%clk 0:02:55.5]} 9. h4 {[%clk 0:02:43.9]} 9... Nc6 {[%clk
0:02:53.1]} 10. O-O-O {[%clk 0:02:43.7]} 10... e5 {[%clk 0:02:49]} 11. d5 {[%clk
0:02:42.4]} 11... Nd4 {[%clk 0:02:47.8]} 12. Be2 {[%clk 0:02:34.3]} 12... Nxe2+
{[%clk 0:02:39.3]} 13. Qxe2 {[%clk 0:02:33.2]} 13... Qe7 {[%clk 0:02:35.1]} 14.
Qb5 {[%clk 0:02:25]} 14... c6 {[%clk 0:02:27.6]} 15. Qc5 {[%clk 0:02:07.3]}
15... Qxc5 {[%clk 0:02:21.9]} 16. Bxc5 {[%clk 0:02:08.2]} 16... Rfc8 {[%clk
0:02:18.6]} 17. Bxb6 {[%clk 0:02:07.7]} 17... axb6 {[%clk 0:02:17.9]} 18. Kb1
{[%clk 0:02:08.4]} 18... b5 {[%clk 0:02:13.5]} 19. Rd3 {[%clk 0:01:59.4]} 19...
b4 {[%clk 0:02:10.5]} 20. Nd1 {[%clk 0:01:57]} 20... f5 {[%clk 0:01:59.6]} 21.
Nd2 {[%clk 0:01:24.6]} 21... fxe4 {[%clk 0:01:50.6]} 22. Nxe4 {[%clk 0:01:25.5]}
22... cxd5 {[%clk 0:01:50.4]} 23. Rxd5 {[%clk 0:01:25.8]} 23... Rd8 {[%clk
0:01:47.1]} 24. Rxd8+ {[%clk 0:01:22.5]} 24... Rxd8 {[%clk 0:01:48]} 25. Ne3
{[%clk 0:01:23.1]} 25... Bf5 {[%clk 0:01:45.2]} 26. Nxf5 {[%clk 0:01:15.1]}
26... gxf5 {[%clk 0:01:46.1]} 27. Ng3 {[%clk 0:01:15.6]} 27... Rd2 {[%clk
0:01:41.1]} 28. Nxf5 {[%clk 0:01:15.9]} 28... Rxf2 {[%clk 0:01:41.1]} 29. g4
{[%clk 0:01:11.9]} 29... e4 {[%clk 0:01:38.7]} 30. Nxg7 {[%clk 0:01:09.3]} 30...
Kxg7 {[%clk 0:01:39.6]} 31. Rc1 {[%clk 0:01:08.2]} 31... Kf6 {[%clk 0:01:33.7]}
32. Rc8 {[%clk 0:01:03.9]} 32... Ke5 {[%clk 0:01:28.4]} 33. g5 {[%clk
0:00:58.2]} 33... e3 {[%clk 0:01:28]} 34. Kc1 {[%clk 0:00:53.3]} 34... Kf4
{[%clk 0:01:21]} 35. Re8 {[%clk 0:00:31]} 35... Rh2 {[%clk 0:01:16.1]} 36. Kd1
{[%clk 0:00:11.2]} 36... Rxh4 {[%clk 0:01:03.6]} 37. Rf8+ {[%clk 0:00:10.7]}
37... Kxg5 {[%clk 0:01:03.4]} 38. Ke2 {[%clk 0:00:11.3]} 38... Rh2+ {[%clk
0:01:03.1]} 39. Kxe3 {[%clk 0:00:11.4]} 39... Rxb2 {[%clk 0:01:03.4]} 40. Rf7
{[%clk 0:00:12]} 40... h5 {[%clk 0:00:54.2]} 41. Rg7+ {[%clk 0:00:11.8]} 41...
Kf5 {[%clk 0:00:52.9]} 42. Rxb7 {[%clk 0:00:11.1]} 42... h4 {[%clk 0:00:53.1]}
43. Kf3 {[%clk 0:00:09.6]} 43... h3 {[%clk 0:00:53]} 44. Rb5+ {[%clk 0:00:07.6]}
44... Ke6 {[%clk 0:00:52.3]} 45. Ke4 {[%clk 0:00:03.8]} 45... h2 {[%clk
0:00:45.6]} 46. Rb6+ {[%clk 0:00:03.6]} 46... Kd7 {[%clk 0:00:46.1]} 47. Rh6
{[%clk 0:00:04.5]} 47... Rxa2 {[%clk 0:00:45.6]} 48. Kd3 {[%clk 0:00:05.2]}
48... Rb2 {[%clk 0:00:45.1]} 49. Kc4 {[%clk 0:00:05]} 49... Ke7 {[%clk
0:00:43.9]} 50. Kd3 {[%clk 0:00:04.5]} 50... Kf7 {[%clk 0:00:43.9]} 51. Kc4
{[%clk 0:00:05.2]} 51... Kg7 {[%clk 0:00:44]} 52. Rh3 {[%clk 0:00:06.1]} 52...
Kg6 {[%clk 0:00:44.2]} 53. Rg3+ {[%clk 0:00:04.5]} 53... Kf5 {[%clk 0:00:44.2]}
54. Rh3 {[%clk 0:00:05.2]} 54... Kg4 {[%clk 0:00:44.3]} 55. Rh8 {[%clk
0:00:05.9]} 55... Kg3 {[%clk 0:00:44.3]} 56. Rg8+ {[%clk 0:00:06.4]} 56... Kf2
{[%clk 0:00:44.5]} 57. Rf8+ {[%clk 0:00:07.1]} 57... Kg1 {[%clk 0:00:44.6]} 58.
Rg8+ {[%clk 0:00:07.8]} 58... Rg2 {[%clk 0:00:44.1]} 0-1